[Event "*** Titled Tuesday 3|2 Blitz"]
[Site "Chess.com"]
[Date "2016.10.04"]
[Round "7"]
[White "brightthunder"]
[Black "talaicito"]
[Result "1-0"]
[WhiteElo "2297"]
[BlackElo "1977"]
[TimeControl "180+2"]
[EndTime "18:32:12 PDT"]
[Termination "brightthunder won by resignation"]

1. e4 {[%clk 0:03:01.9]} 1... e6 {[%clk 0:03:00.8]} 2. d4 {[%clk 0:03:01.6]}
2... d5 {[%clk 0:03:02.3]} 3. Nc3 {[%clk 0:03:03.1]} 3... Bb4 {[%clk 0:03:03.2]}
4. e5 {[%clk 0:03:03.9]} 4... Ne7 {[%clk 0:03:03.1]} 5. a3 {[%clk 0:03:03.4]}
5... Bxc3+ {[%clk 0:03:03.5]} 6. bxc3 {[%clk 0:03:05.3]} 6... c5 {[%clk
0:03:04.7]} 7. Nf3 {[%clk 0:03:05]} 7... Qa5 {[%clk 0:03:03.4]} 8. Bd2 {[%clk
0:03:04.9]} 8... Qa4 {[%clk 0:03:03.3]} 9. Bd3 {[%clk 0:02:58.6]} 9... Nbc6
{[%clk 0:03:02.1]} 10. dxc5 {[%clk 0:02:58.2]} 10... Ng6 {[%clk 0:02:43.6]} 11.
O-O {[%clk 0:02:50.8]} 11... Ngxe5 {[%clk 0:02:42.4]} 12. Nxe5 {[%clk
0:02:51.5]} 12... Nxe5 {[%clk 0:02:42.3]} 13. Be3 {[%clk 0:02:53.4]} 13... O-O
{[%clk 0:02:29.3]} 14. Bxh7+ {[%clk 0:02:46.2]} 14... Kxh7 {[%clk 0:02:27.6]}
15. Qh5+ {[%clk 0:02:48.1]} 15... Kg8 {[%clk 0:02:26.2]} 16. Qxe5 {[%clk
0:02:50]} 16... Bd7 {[%clk 0:02:25.3]} 17. f4 {[%clk 0:02:41.6]} 17... f6 {[%clk
0:02:11.4]} 18. Qh5 {[%clk 0:02:25.4]} 18... Qxc2 {[%clk 0:02:00.8]} 19. Bd4
{[%clk 0:02:25.3]} 19... Be8 {[%clk 0:01:42.6]} 20. Qh4 {[%clk 0:02:09.3]} 20...
Bg6 {[%clk 0:01:37.8]} 21. Rf2 {[%clk 0:02:06.1]} 21... Qe4 {[%clk 0:01:32.2]}
22. Rf3 {[%clk 0:01:52.4]} 22... Rac8 {[%clk 0:01:08.2]} 23. Re1 {[%clk
0:01:44.3]} 23... Qf5 {[%clk 0:00:50.9]} 24. Qf2 {[%clk 0:01:04.2]} 24... Rce8
{[%clk 0:00:40.2]} 25. h3 {[%clk 0:01:02.9]} 25... Qh5 {[%clk 0:00:26.7]} 26.
Qg3 {[%clk 0:00:34.3]} 26... Be4 {[%clk 0:00:25.9]} 27. Rf2 {[%clk 0:00:33.7]}
27... e5 {[%clk 0:00:23.3]} 28. fxe5 {[%clk 0:00:34.2]} 28... fxe5 {[%clk
0:00:23.8]} 29. Rxf8+ {[%clk 0:00:34.4]} 29... Kxf8 {[%clk 0:00:24.2]} 30. Rf1+
{[%clk 0:00:34.1]} 30... Kg8 {[%clk 0:00:24.8]} 31. Be3 {[%clk 0:00:35.5]} 31...
Qg6 {[%clk 0:00:22.9]} 32. Bg5 {[%clk 0:00:35.5]} 32... d4 {[%clk 0:00:20.9]}
33. cxd4 {[%clk 0:00:34.8]} 33... exd4 {[%clk 0:00:21.4]} 34. h4 {[%clk
0:00:35]} 34... d3 {[%clk 0:00:20.9]} 35. Qd6 {[%clk 0:00:31.5]} 35... Qxd6
{[%clk 0:00:18.6]} 36. cxd6 {[%clk 0:00:33.4]} 36... Bc6 {[%clk 0:00:17.7]} 37.
Be7 {[%clk 0:00:27.7]} 37... Rc8 {[%clk 0:00:11.9]} 38. Kf2 {[%clk 0:00:22.1]}
38... Kf7 {[%clk 0:00:11.9]} 39. Ke3+ {[%clk 0:00:22]} 39... Ke6 {[%clk
0:00:12.5]} 40. g4 {[%clk 0:00:21.3]} 40... Kd7 {[%clk 0:00:12.6]} 41. Rf7
{[%clk 0:00:20.1]} 41... Rg8 {[%clk 0:00:11.5]} 42. Kxd3 {[%clk 0:00:20.5]}
42... Bd5 {[%clk 0:00:11.4]} 43. Rf2 {[%clk 0:00:18.9]} 43... Kc6 {[%clk
0:00:11.9]} 44. Rc2+ {[%clk 0:00:18.3]} 44... Kd7 {[%clk 0:00:12.1]} 45. Kd4
{[%clk 0:00:17.5]} 45... Bc6 {[%clk 0:00:12.9]} 46. h5 {[%clk 0:00:17.4]} 46...
g6 {[%clk 0:00:11.8]} 47. h6 {[%clk 0:00:17.8]} 47... Rh8 {[%clk 0:00:11.4]} 48.
g5 {[%clk 0:00:18.4]} 48... Rh7 {[%clk 0:00:11.8]} 49. Ke5 {[%clk 0:00:19.2]}
49... Rf7 {[%clk 0:00:12.5]} 50. Bf6 {[%clk 0:00:18.4]} 50... a6 {[%clk
0:00:11.9]} 51. Rh2 {[%clk 0:00:19]} 51... Rh7 {[%clk 0:00:11.4]} 52. Bg7 {[%clk
0:00:18.7]} 52... a5 {[%clk 0:00:08.6]} 53. Rf2 {[%clk 0:00:19.1]} 53... b5
{[%clk 0:00:06.9]} 54. Rf7+ {[%clk 0:00:19.8]} 54... Ke8 {[%clk 0:00:07]} 55.
Re7+ {[%clk 0:00:20.3]} 55... Kd8 {[%clk 0:00:08]} 56. Kf6 {[%clk 0:00:21.8]}
56... b4 {[%clk 0:00:08.1]} 57. axb4 {[%clk 0:00:23.3]} 57... axb4 {[%clk
0:00:09.1]} 58. Kxg6 {[%clk 0:00:24.8]} 58... Be4+ {[%clk 0:00:08.2]} 59. Rxe4
{[%clk 0:00:25.2]} 59... b3 {[%clk 0:00:09.3]} 60. Kxh7 {[%clk 0:00:25.5]} 60...
b2 {[%clk 0:00:10]} 61. Bxb2 {[%clk 0:00:26.2]} 61... Kd7 {[%clk 0:00:09.5]} 62.
Be5 {[%clk 0:00:25.5]} 62... Ke6 {[%clk 0:00:08]} 63. Bf4+ {[%clk 0:00:26.5]}
63... Kd7 {[%clk 0:00:08.4]} 64. Kg6 {[%clk 0:00:26]} 64... Kd8 {[%clk
0:00:07.9]} 65. Re7 {[%clk 0:00:26.6]} 1-0

[Event "*** Titled Tuesday 3|2 Blitz"]
[Site "Chess.com"]
[Date "2016.10.04"]
[Round "7"]
[White "chito89"]
[Black "psv98"]
[Result "0-1"]
[WhiteElo "2554"]
[BlackElo "2601"]
[TimeControl "180+2"]
[EndTime "18:32:30 PDT"]
[Termination "psv98 won by resignation"]

1. e4 {[%clk 0:03:02]} 1... Nf6 {[%clk 0:02:55.8]} 2. e5 {[%clk 0:03:02.8]} 2...
Nd5 {[%clk 0:02:57.3]} 3. d4 {[%clk 0:03:04.3]} 3... d6 {[%clk 0:02:58.6]} 4. c4
{[%clk 0:03:02.2]} 4... Nb6 {[%clk 0:02:58.8]} 5. exd6 {[%clk 0:03:03.9]} 5...
cxd6 {[%clk 0:02:58.5]} 6. Be3 {[%clk 0:03:05.2]} 6... g6 {[%clk 0:02:59.7]} 7.
Nc3 {[%clk 0:03:04.8]} 7... Bg7 {[%clk 0:03:01]} 8. b3 {[%clk 0:03:06.1]} 8...
O-O {[%clk 0:03:02.3]} 9. Rc1 {[%clk 0:03:07.6]} 9... Nc6 {[%clk 0:03:03.2]} 10.
Be2 {[%clk 0:03:07.8]} 10... Bf5 {[%clk 0:03:01.8]} 11. Nf3 {[%clk 0:03:08.1]}
11... Nd7 {[%clk 0:02:51]} 12. O-O {[%clk 0:03:07.1]} 12... Bg4 {[%clk
0:02:50.1]} 13. d5 {[%clk 0:03:01.5]} 13... Bxf3 {[%clk 0:02:49.2]} 14. Bxf3
{[%clk 0:03:03.1]} 14... Nce5 {[%clk 0:02:46.9]} 15. Be2 {[%clk 0:03:04.1]}
15... Nf6 {[%clk 0:02:44]} 16. Bd4 {[%clk 0:02:55.6]} 16... Ned7 {[%clk
0:02:36.8]} 17. Re1 {[%clk 0:02:56]} 17... Ne8 {[%clk 0:02:24]} 18. Bf1 {[%clk
0:02:52]} 18... Bxd4 {[%clk 0:02:22.5]} 19. Qxd4 {[%clk 0:02:53.6]} 19... Ng7
{[%clk 0:02:24.2]} 20. Bd3 {[%clk 0:02:52.7]} 20... Re8 {[%clk 0:02:21.9]} 21.
Re3 {[%clk 0:02:49.9]} 21... Qb6 {[%clk 0:02:04.7]} 22. Qh4 {[%clk 0:02:48.3]}
22... e5 {[%clk 0:02:03.1]} 23. dxe6 {[%clk 0:02:44.1]} 23... Rxe6 {[%clk
0:02:04.3]} 24. Nd5 {[%clk 0:02:36.8]} 24... Qd8 {[%clk 0:01:59.3]} 25. Qd4
{[%clk 0:02:32.3]} 25... Rxe3 {[%clk 0:01:45.4]} 26. Qxe3 {[%clk 0:02:30.6]}
26... Nf6 {[%clk 0:01:39.2]} 27. Be4 {[%clk 0:02:15.7]} 27... Nxd5 {[%clk
0:01:18.5]} 28. Bxd5 {[%clk 0:02:15.1]} 28... Qd7 {[%clk 0:01:15.1]} 29. Qf3
{[%clk 0:02:07.4]} 29... Rb8 {[%clk 0:01:13.4]} 30. Re1 {[%clk 0:01:49.7]} 30...
b6 {[%clk 0:01:13.5]} 31. Bc6 {[%clk 0:01:48.8]} 31... Qc7 {[%clk 0:00:49.6]}
32. h4 {[%clk 0:01:48.4]} 32... Rc8 {[%clk 0:00:49.9]} 33. Bd5 {[%clk 0:01:39]}
33... Re8 {[%clk 0:00:49.5]} 34. Rxe8+ {[%clk 0:01:36.4]} 34... Nxe8 {[%clk
0:00:51.4]} 35. h5 {[%clk 0:01:36.4]} 35... Qe7 {[%clk 0:00:50.1]} 36. h6 {[%clk
0:01:37]} 36... Nf6 {[%clk 0:00:38.5]} 37. g3 {[%clk 0:01:37.9]} 37... Qe5
{[%clk 0:00:29.1]} 38. Bc6 {[%clk 0:01:25.3]} 38... Kf8 {[%clk 0:00:29.1]} 39.
Qd3 {[%clk 0:01:14.9]} 39... Ng8 {[%clk 0:00:28.2]} 40. Qd2 {[%clk 0:01:13.5]}
40... Ke7 {[%clk 0:00:26.8]} 41. Kg2 {[%clk 0:01:13]} 41... Nf6 {[%clk 0:00:28]}
42. Bf3 {[%clk 0:01:14.5]} 42... g5 {[%clk 0:00:25.3]} 43. Qd1 {[%clk
0:01:01.8]} 43... Ng8 {[%clk 0:00:23.7]} 44. Qd3 {[%clk 0:01:02.1]} 44... Nf6
{[%clk 0:00:11.2]} 45. g4 {[%clk 0:00:43.9]} 45... Ke6 {[%clk 0:00:11.1]} 46. b4
{[%clk 0:00:43.1]} 46... Qf4 {[%clk 0:00:08.8]} 47. Qe2+ {[%clk 0:00:37.4]}
47... Qe5 {[%clk 0:00:10.1]} 48. Qd1 {[%clk 0:00:34.4]} 48... Qf4 {[%clk
0:00:06.2]} 49. c5 {[%clk 0:00:35.5]} 49... bxc5 {[%clk 0:00:06.4]} 50. bxc5
{[%clk 0:00:37.1]} 50... dxc5 {[%clk 0:00:07.7]} 51. Qd8 {[%clk 0:00:37.1]}
51... c4 {[%clk 0:00:05.4]} 52. Qc8+ {[%clk 0:00:36.2]} 52... Ke5 {[%clk
0:00:06.2]} 53. Qb8+ {[%clk 0:00:35.6]} 53... Kd4 {[%clk 0:00:06.3]} 54. Qxa7+
{[%clk 0:00:37]} 54... Kd3 {[%clk 0:00:07.3]} 55. Qxf7 {[%clk 0:00:25]} 55... c3
{[%clk 0:00:08.4]} 56. Qb3 {[%clk 0:00:26.1]} 56... Kd4 {[%clk 0:00:03.6]} 57.
Qa4+ {[%clk 0:00:24.2]} 57... Kd3 {[%clk 0:00:03.5]} 58. Qd1+ {[%clk 0:00:25.2]}
58... Kc4 {[%clk 0:00:05]} 59. Qb3+ {[%clk 0:00:21.2]} 59... Kd3 {[%clk
0:00:05.6]} 60. a4 {[%clk 0:00:22.2]} 60... Qe5 {[%clk 0:00:03]} 61. Qd1+ {[%clk
0:00:18.2]} 61... Kc4 {[%clk 0:00:03.8]} 62. Qb1 {[%clk 0:00:17.2]} 62... Nd5
{[%clk 0:00:03.6]} 63. Qb5+ {[%clk 0:00:17.1]} 63... Kd4 {[%clk 0:00:05]} 64. a5
{[%clk 0:00:17.8]} 64... Nf4+ {[%clk 0:00:06]} 0-1

[Event "*** Titled Tuesday 3|2 Blitz"]
[Site "Chess.com"]
[Date "2016.10.04"]
[Round "7"]
[White "hardingstoptry"]
[Black "Mornar1951"]
[Result "1/2-1/2"]
[WhiteElo "2484"]
[BlackElo "2584"]
[TimeControl "180+2"]
[EndTime "18:32:35 PDT"]
[Termination "Game drawn - insufficient material"]

1. Nf3 {[%clk 0:03:02]} 1... d5 {[%clk 0:02:52.3]} 2. g3 {[%clk 0:03:03.9]} 2...
g6 {[%clk 0:02:51.4]} 3. Bg2 {[%clk 0:03:05.8]} 3... Bg7 {[%clk 0:02:52.6]} 4.
O-O {[%clk 0:03:06.2]} 4... Nf6 {[%clk 0:02:51.8]} 5. c4 {[%clk 0:03:07.3]} 5...
O-O {[%clk 0:02:52.5]} 6. cxd5 {[%clk 0:03:08]} 6... Nxd5 {[%clk 0:02:54]} 7.
Nc3 {[%clk 0:03:08.2]} 7... Nc6 {[%clk 0:02:55.1]} 8. Nxd5 {[%clk 0:03:04.7]}
8... Qxd5 {[%clk 0:02:57]} 9. d3 {[%clk 0:03:04.2]} 9... a5 {[%clk 0:02:55.4]}
10. Bf4 {[%clk 0:03:03.7]} 10... Qb5 {[%clk 0:02:49.3]} 11. Rb1 {[%clk
0:03:02.7]} 11... e5 {[%clk 0:02:49.9]} 12. a4 {[%clk 0:03:01.9]} 12... Qa6
{[%clk 0:02:40.6]} 13. Bd2 {[%clk 0:02:57.8]} 13... Nd4 {[%clk 0:02:35.3]} 14.
Nxd4 {[%clk 0:02:54.9]} 14... exd4 {[%clk 0:02:37.2]} 15. b4 {[%clk 0:02:56.3]}
15... axb4 {[%clk 0:02:35]} 16. Bxb4 {[%clk 0:02:56.1]} 16... Re8 {[%clk
0:02:36.2]} 17. a5 {[%clk 0:02:57]} 17... Bg4 {[%clk 0:02:27]} 18. Re1 {[%clk
0:02:53.4]} 18... c6 {[%clk 0:02:27.6]} 19. h3 {[%clk 0:02:49.1]} 19... Be6
{[%clk 0:02:15.4]} 20. Qc1 {[%clk 0:02:45.3]} 20... Rac8 {[%clk 0:02:10.3]} 21.
Bd2 {[%clk 0:02:44.4]} 21... Bd5 {[%clk 0:02:08.1]} 22. Bxd5 {[%clk 0:02:33.4]}
22... cxd5 {[%clk 0:02:10]} 23. Qd1 {[%clk 0:02:32.5]} 23... Qe6 {[%clk
0:01:53]} 24. e4 {[%clk 0:02:30]} 24... dxe3 {[%clk 0:01:51.1]} 25. Rxe3 {[%clk
0:02:31.1]} 25... Qd7 {[%clk 0:01:46.9]} 26. Rxe8+ {[%clk 0:02:27.9]} 26... Rxe8
{[%clk 0:01:47.1]} 27. Qb3 {[%clk 0:02:24.9]} 27... Qxh3 {[%clk 0:01:35.2]} 28.
Qxd5 {[%clk 0:02:21.9]} 28... Re7 {[%clk 0:00:32.2]} 29. Bf4 {[%clk 0:02:04.3]}
29... Qd7 {[%clk 0:00:27.3]} 30. Qc4 {[%clk 0:01:55.4]} 30... h5 {[%clk
0:00:25.1]} 31. Be3 {[%clk 0:01:53]} 31... Qc7 {[%clk 0:00:21.3]} 32. Qd5 {[%clk
0:01:51.1]} 32... Rd7 {[%clk 0:00:21.9]} 33. Qb5 {[%clk 0:01:46.4]} 33... Qd6
{[%clk 0:00:21.3]} 34. d4 {[%clk 0:01:40.2]} 34... Qd5 {[%clk 0:00:17.5]} 35.
Qb4 {[%clk 0:01:31.4]} 35... h4 {[%clk 0:00:18.1]} 36. Qc5 {[%clk 0:01:20.6]}
36... hxg3 {[%clk 0:00:17.2]} 37. Qxd5 {[%clk 0:01:21.4]} 37... gxf2+ {[%clk
0:00:17.1]} 38. Kxf2 {[%clk 0:01:22.3]} 38... Rxd5 {[%clk 0:00:18.5]} 39. Rxb7
{[%clk 0:01:18.3]} 39... Rxa5 {[%clk 0:00:19.3]} 40. Kf3 {[%clk 0:01:17.4]}
40... f5 {[%clk 0:00:16.3]} 41. Rb8+ {[%clk 0:01:08]} 41... Kf7 {[%clk
0:00:17.6]} 42. Rb7+ {[%clk 0:01:05.6]} 42... Kf8 {[%clk 0:00:17.8]} 43. Rb8+
{[%clk 0:01:06.4]} 43... Ke7 {[%clk 0:00:18.5]} 44. Rb7+ {[%clk 0:01:07.2]}
44... Kf6 {[%clk 0:00:19.6]} 45. Rb6+ {[%clk 0:01:05.3]} 45... Kf7 {[%clk
0:00:20.3]} 46. Rb7+ {[%clk 0:01:04.5]} 46... Kg8 {[%clk 0:00:21.4]} 47. Rb8+
{[%clk 0:01:05]} 47... Kh7 {[%clk 0:00:22.4]} 48. Rb7 {[%clk 0:01:06.1]} 48...
Rd5 {[%clk 0:00:22.4]} 49. Bg5 {[%clk 0:01:05.3]} 49... Kg8 {[%clk 0:00:21.2]}
50. Rb8+ {[%clk 0:01:04]} 50... Kf7 {[%clk 0:00:21.6]} 51. Rb7+ {[%clk
0:00:09.6]} 51... Kg8 {[%clk 0:00:22.5]} 52. Rb8+ {[%clk 0:00:10.3]} 52... Kh7
{[%clk 0:00:23.7]} 53. Rb7 {[%clk 0:00:10.1]} 53... Rd6 {[%clk 0:00:23.3]} 54.
Bf4 {[%clk 0:00:09.2]} 54... Rxd4 {[%clk 0:00:17.2]} 55. Be5 {[%clk 0:00:06]}
55... Re4 {[%clk 0:00:16.9]} 56. Rxg7+ {[%clk 0:00:06.9]} 56... Kh6 {[%clk
0:00:18.1]} 57. Re7 {[%clk 0:00:07.6]} 57... g5 {[%clk 0:00:18.2]} 58. Bf6
{[%clk 0:00:08.4]} 58... g4+ {[%clk 0:00:17.9]} 59. Kg3 {[%clk 0:00:08.1]} 59...
Rxe7 {[%clk 0:00:18.8]} 60. Bxe7 {[%clk 0:00:09.1]} 60... Kg6 {[%clk 0:00:20]}
61. Kf4 {[%clk 0:00:10.2]} 61... g3 {[%clk 0:00:20.9]} 62. Kxg3 {[%clk
0:00:09.3]} 62... f4+ {[%clk 0:00:22.3]} 63. Kxf4 {[%clk 0:00:08.9]} 1/2-1/2

[Event "*** Titled Tuesday 3|2 Blitz"]
[Site "Chess.com"]
[Date "2016.10.04"]
[Round "8"]
[White "GianmarcoVaR"]
[Black "agser"]
[Result "0-1"]
[WhiteElo "2389"]
[BlackElo "2521"]
[TimeControl "180+2"]
[EndTime "18:46:55 PDT"]
[Termination "agser won on time"]

1. d4 {[%clk 0:03:02]} 1... Nf6 {[%clk 0:02:58.8]} 2. Nf3 {[%clk 0:03:01.5]}
2... e6 {[%clk 0:02:58.9]} 3. c4 {[%clk 0:02:55.2]} 3... b6 {[%clk 0:02:59.6]}
4. g3 {[%clk 0:02:54]} 4... Ba6 {[%clk 0:02:59.3]} 5. Qc2 {[%clk 0:02:49.8]}
5... c5 {[%clk 0:02:59.1]} 6. d5 {[%clk 0:02:45.2]} 6... exd5 {[%clk 0:03:01]}
7. cxd5 {[%clk 0:02:44.8]} 7... Bb7 {[%clk 0:03:02.5]} 8. Bg2 {[%clk 0:02:18.7]}
8... Nxd5 {[%clk 0:03:00.8]} 9. O-O {[%clk 0:02:15.9]} 9... Be7 {[%clk
0:03:01.8]} 10. Rd1 {[%clk 0:02:16.1]} 10... Nc6 {[%clk 0:03:02.8]} 11. a3
{[%clk 0:01:45.7]} 11... Nc7 {[%clk 0:03:00.1]} 12. Nc3 {[%clk 0:01:44.8]} 12...
Ne6 {[%clk 0:02:48.4]} 13. Nd5 {[%clk 0:01:16.9]} 13... O-O {[%clk 0:02:47]} 14.
e3 {[%clk 0:01:11.7]} 14... Re8 {[%clk 0:02:26.7]} 15. b3 {[%clk 0:01:04.7]}
15... Bf8 {[%clk 0:02:20.2]} 16. Bb2 {[%clk 0:01:04.7]} 16... Ne7 {[%clk
0:02:15.9]} 17. Nxe7+ {[%clk 0:00:16.6]} 17... Qxe7 {[%clk 0:02:08]} 18. Ng5
{[%clk 0:00:09.5]} 18... Nxg5 {[%clk 0:02:06.4]} 19. Bxb7 {[%clk 0:00:11.1]}
19... Rad8 {[%clk 0:01:57.3]} 20. Bd5 {[%clk 0:00:10.9]} 20... d6 {[%clk
0:01:49]} 21. h4 {[%clk 0:00:05.9]} 21... Ne4 {[%clk 0:01:27.4]} 22. Bc6 {[%clk
0:00:04.4]} 22... Qe6 {[%clk 0:01:24.4]} 0-1

[Event "*** Titled Tuesday 3|2 Blitz"]
[Site "Chess.com"]
[Date "2016.10.04"]
[Round "8"]
[White "cheese111"]
[Black "Shivagami"]
[Result "0-1"]
[WhiteElo "2276"]
[BlackElo "2001"]
[TimeControl "180+2"]
[EndTime "18:47:49 PDT"]
[Termination "Shivagami won by resignation"]

1. e4 {[%clk 0:03:02]} 1... Nc6 {[%clk 0:02:59.8]} 2. Nf3 {[%clk 0:03:02.9]}
2... d6 {[%clk 0:03:00.6]} 3. d4 {[%clk 0:03:03.3]} 3... Nf6 {[%clk 0:03:01.5]}
4. Nc3 {[%clk 0:03:03.9]} 4... Bg4 {[%clk 0:03:02.1]} 5. Bb5 {[%clk 0:03:00.8]}
5... a6 {[%clk 0:03:01.3]} 6. Bxc6+ {[%clk 0:02:59.5]} 6... bxc6 {[%clk
0:03:03.2]} 7. h3 {[%clk 0:02:58]} 7... Bh5 {[%clk 0:03:03]} 8. Be3 {[%clk
0:02:56.4]} 8... e6 {[%clk 0:03:03.4]} 9. O-O {[%clk 0:02:55.7]} 9... Be7 {[%clk
0:03:00.7]} 10. Qe2 {[%clk 0:02:53.8]} 10... O-O {[%clk 0:02:57.8]} 11. Rad1
{[%clk 0:02:30.1]} 11... d5 {[%clk 0:02:56.6]} 12. Bf4 {[%clk 0:02:12.2]} 12...
Nd7 {[%clk 0:02:27.6]} 13. Qe3 {[%clk 0:01:56.2]} 13... Nb6 {[%clk 0:02:20.6]}
14. b3 {[%clk 0:01:35.4]} 14... dxe4 {[%clk 0:01:44.5]} 15. Qxe4 {[%clk
0:00:50.2]} 15... Nd5 {[%clk 0:01:42.9]} 16. Bd2 {[%clk 0:00:49.3]} 16... Bb4
{[%clk 0:01:27.3]} 17. Na4 {[%clk 0:00:25.3]} 17... Bxd2 {[%clk 0:01:16.5]} 18.
Rxd2 {[%clk 0:00:24.4]} 18... Qf6 {[%clk 0:01:14.9]} 19. Ne5 {[%clk 0:00:22.5]}
19... Qg5 {[%clk 0:00:52.3]} 20. f4 {[%clk 0:00:21.5]} 20... Qg3 {[%clk
0:00:45.1]} 21. Nxc6 {[%clk 0:00:13.2]} 21... Ne3 {[%clk 0:00:42.7]} 22. Rf3
{[%clk 0:00:03.7]} 22... Qe1+ {[%clk 0:00:36.5]} 23. Kh2 {[%clk 0:00:04.3]}
23... Nf1+ {[%clk 0:00:35.2]} 24. Rxf1 {[%clk 0:00:04.5]} 24... Qxe4 {[%clk
0:00:36.2]} 0-1

[Event "*** Titled Tuesday 3|2 Blitz"]
[Site "Chess.com"]
[Date "2016.10.04"]
[Round "8"]
[White "SwiftyMcBishop"]
[Black "brightthunder"]
[Result "0-1"]
[WhiteElo "2069"]
[BlackElo "2306"]
[TimeControl "180+2"]
[EndTime "18:47:58 PDT"]
[Termination "brightthunder won on time"]

1. e4 {[%clk 0:03:02]} 1... c5 {[%clk 0:03:00.5]} 2. Nf3 {[%clk 0:02:55.8]} 2...
e6 {[%clk 0:03:02]} 3. c3 {[%clk 0:02:44]} 3... Nf6 {[%clk 0:03:01]} 4. e5
{[%clk 0:02:41.6]} 4... Nd5 {[%clk 0:03:02.4]} 5. d4 {[%clk 0:02:32.7]} 5...
cxd4 {[%clk 0:03:04.3]} 6. cxd4 {[%clk 0:02:30.6]} 6... d6 {[%clk 0:03:02.9]} 7.
Bc4 {[%clk 0:02:29.9]} 7... Be7 {[%clk 0:03:01.2]} 8. O-O {[%clk 0:02:30.3]}
8... O-O {[%clk 0:03:02.6]} 9. Qe2 {[%clk 0:02:29.2]} 9... b6 {[%clk 0:03:02.4]}
10. Bd3 {[%clk 0:02:24.9]} 10... Bb7 {[%clk 0:03:00.4]} 11. Qe4 {[%clk 0:02:25]}
11... g6 {[%clk 0:03:00]} 12. Bh6 {[%clk 0:02:24.2]} 12... Re8 {[%clk
0:02:59.9]} 13. Qg4 {[%clk 0:02:22.5]} 13... Ba6 {[%clk 0:02:54.5]} 14. Bxa6
{[%clk 0:02:18.2]} 14... Nxa6 {[%clk 0:02:56.4]} 15. Nc3 {[%clk 0:02:18.6]}
15... Nxc3 {[%clk 0:02:53.7]} 16. bxc3 {[%clk 0:02:19.2]} 16... Rc8 {[%clk
0:02:54.8]} 17. Ng5 {[%clk 0:02:19.4]} 17... dxe5 {[%clk 0:02:45.6]} 18. dxe5
{[%clk 0:02:19.8]} 18... Qd3 {[%clk 0:01:56.2]} 19. Nxe6 {[%clk 0:01:49.3]}
19... Qd7 {[%clk 0:01:54.2]} 20. Qe2 {[%clk 0:01:30.8]} 20... Qxe6 {[%clk
0:01:52.6]} 21. Qxa6 {[%clk 0:01:31.4]} 21... g5 {[%clk 0:01:52.9]} 22. Bxg5
{[%clk 0:01:24.6]} 22... Bxg5 {[%clk 0:01:51.8]} 23. f4 {[%clk 0:01:26.1]} 23...
Be7 {[%clk 0:01:51.4]} 24. Rf3 {[%clk 0:01:19.2]} 24... Bc5+ {[%clk 0:01:44.7]}
25. Kh1 {[%clk 0:01:18.9]} 25... Rcd8 {[%clk 0:01:45.4]} 26. Raf1 {[%clk
0:01:04.8]} 26... Rd2 {[%clk 0:01:38.8]} 27. Rg3+ {[%clk 0:00:52.6]} 27... Kh8
{[%clk 0:01:36.7]} 28. Qb7 {[%clk 0:00:21.4]} 28... Qd5 {[%clk 0:01:15.3]} 29.
Qc7 {[%clk 0:00:10]} 29... Rd1 {[%clk 0:01:00.1]} 30. Rf3 {[%clk 0:00:06.7]}
30... Rg8 {[%clk 0:00:59.7]} 0-1

[Event "*** Titled Tuesday 3|2 Blitz"]
[Site "Chess.com"]
[Date "2016.10.04"]
[Round "8"]
[White "gmshanmeruga"]
[Black "Noukii"]
[Result "0-1"]
[WhiteElo "2308"]
[BlackElo "2595"]
[TimeControl "180+2"]
[EndTime "18:48:00 PDT"]
[Termination "Noukii won by resignation"]

1. Nf3 {[%clk 0:02:59.3]} 1... Nf6 {[%clk 0:03:01.9]} 2. g3 {[%clk 0:02:57.3]}
2... d5 {[%clk 0:03:03.1]} 3. Bg2 {[%clk 0:02:58.2]} 3... c6 {[%clk 0:03:05]} 4.
O-O {[%clk 0:02:58.8]} 4... Bg4 {[%clk 0:03:06.6]} 5. Ne5 {[%clk 0:02:59.6]}
5... Bf5 {[%clk 0:03:05.8]} 6. d4 {[%clk 0:03:00.5]} 6... Nbd7 {[%clk
0:03:07.1]} 7. c3 {[%clk 0:02:53.3]} 7... e6 {[%clk 0:03:07.5]} 8. Bf4 {[%clk
0:02:53.4]} 8... Be7 {[%clk 0:02:59.8]} 9. Nd2 {[%clk 0:02:54.1]} 9... O-O
{[%clk 0:03:00.6]} 10. Re1 {[%clk 0:02:54]} 10... Nxe5 {[%clk 0:02:55.9]} 11.
Bxe5 {[%clk 0:02:54.5]} 11... Nd7 {[%clk 0:02:56.4]} 12. Bf4 {[%clk 0:02:55.6]}
12... a5 {[%clk 0:02:57]} 13. e4 {[%clk 0:02:56.6]} 13... Bg6 {[%clk 0:02:58.5]}
14. exd5 {[%clk 0:02:49]} 14... cxd5 {[%clk 0:02:57.4]} 15. Nf3 {[%clk
0:02:50.5]} 15... a4 {[%clk 0:02:55]} 16. Ne5 {[%clk 0:02:45.1]} 16... Nxe5
{[%clk 0:02:56.2]} 17. Bxe5 {[%clk 0:02:45.2]} 17... Qb6 {[%clk 0:02:54.6]} 18.
Qe2 {[%clk 0:02:45.4]} 18... Rfc8 {[%clk 0:02:53.8]} 19. h4 {[%clk 0:02:45.3]}
19... a3 {[%clk 0:02:34.2]} 20. b3 {[%clk 0:02:31.8]} 20... Rxc3 {[%clk
0:02:23.8]} 21. h5 {[%clk 0:02:26.9]} 21... Bf5 {[%clk 0:02:24.5]} 22. h6 {[%clk
0:02:12.7]} 22... g5 {[%clk 0:02:18.4]} 23. g4 {[%clk 0:02:04.9]} 23... Bg6
{[%clk 0:02:19]} 24. Bg3 {[%clk 0:02:00.4]} 24... Bf8 {[%clk 0:02:03.7]} 25.
Rac1 {[%clk 0:01:44.4]} 25... Rxc1 {[%clk 0:01:54.2]} 26. Rxc1 {[%clk 0:01:45]}
26... Qxd4 {[%clk 0:01:53.2]} 27. Be5 {[%clk 0:01:44.4]} 27... Qd3 {[%clk
0:01:44.9]} 28. Qe1 {[%clk 0:01:38.9]} 28... Bxh6 {[%clk 0:01:45]} 29. Bf1
{[%clk 0:01:39.6]} 29... Qf3 {[%clk 0:01:41.7]} 30. Be2 {[%clk 0:01:37.8]} 30...
Qe4 {[%clk 0:01:38.3]} 31. Bg3 {[%clk 0:01:32.5]} 31... Bg7 {[%clk 0:01:35.3]}
32. Qd2 {[%clk 0:01:26.7]} 32... h6 {[%clk 0:01:27.2]} 33. Rc7 {[%clk
0:01:23.5]} 33... Qb1+ {[%clk 0:01:27.3]} 34. Kh2 {[%clk 0:01:23.8]} 34... Qb2
{[%clk 0:01:27.5]} 35. Qe3 {[%clk 0:01:14]} 35... Qxa2 {[%clk 0:01:24.1]} 36.
Be5 {[%clk 0:01:14.8]} 36... Bxe5+ {[%clk 0:01:21.2]} 37. Qxe5 {[%clk
0:01:15.3]} 37... Qb2 {[%clk 0:01:22.4]} 38. Qd6 {[%clk 0:01:03.9]} 38... Qxe2
{[%clk 0:01:18.2]} 39. Kh3 {[%clk 0:01:02.7]} 39... Qf3+ {[%clk 0:01:15.6]} 40.
Kh2 {[%clk 0:01:01.8]} 40... Qxf2+ {[%clk 0:01:16.7]} 41. Kh3 {[%clk 0:01:03.2]}
41... Qf3+ {[%clk 0:01:15.6]} 42. Kh2 {[%clk 0:01:04]} 42... Be4 {[%clk
0:01:12.6]} 43. Rc8+ {[%clk 0:00:43.6]} 43... Rxc8 {[%clk 0:01:12.7]} 44. Qf8+
{[%clk 0:00:44.6]} 44... Kxf8 {[%clk 0:01:12.7]} 0-1